[Event "*** Titled Tuesday Blitz"]
[Site "Chess.com"]
[Date "2019.08.06"]
[Round "9"]
[White "VeraNebolsina"]
[Black "Saitama_Hero"]
[Result "1-0"]
[WhiteElo "2406"]
[BlackElo "2342"]
[TimeControl "180+2"]
[EndTime "15:11:05 PDT"]
[Termination "VeraNebolsina won on time"]

1. e4 {[%clk 0:03:01.9]} 1... d6 {[%clk 0:02:55.1]} 2. d4 {[%clk 0:02:59.7]}
2... Nf6 {[%clk 0:02:56.5]} 3. Nc3 {[%clk 0:02:59.9]} 3... c6 {[%clk 0:02:58]}
4. Nf3 {[%clk 0:02:56.8]} 4... Bg4 {[%clk 0:02:56.4]} 5. Be2 {[%clk 0:02:55.5]}
5... e6 {[%clk 0:02:56.2]} 6. Be3 {[%clk 0:02:51.8]} 6... Be7 {[%clk 0:02:55.9]}
7. Nd2 {[%clk 0:02:42.9]} 7... Bxe2 {[%clk 0:02:55.2]} 8. Qxe2 {[%clk
0:02:43.6]} 8... d5 {[%clk 0:02:55.2]} 9. e5 {[%clk 0:02:41]} 9... Nfd7 {[%clk
0:02:56.6]} 10. Qg4 {[%clk 0:02:38.1]} 10... g6 {[%clk 0:02:55.2]} 11. Bh6
{[%clk 0:02:34.2]} 11... c5 {[%clk 0:02:49]} 12. dxc5 {[%clk 0:01:37.8]} 12...
Nxe5 {[%clk 0:02:42.9]} 13. Qe2 {[%clk 0:01:37.7]} 13... Nbc6 {[%clk 0:02:36.8]}
14. Bg7 {[%clk 0:01:34.2]} 14... Bf6 {[%clk 0:02:28.4]} 15. Bxh8 {[%clk
0:01:31.5]} 15... Bxh8 {[%clk 0:02:30.3]} 16. O-O {[%clk 0:01:29.3]} 16... Nd4
{[%clk 0:02:23.2]} 17. Qd1 {[%clk 0:01:25.1]} 17... Qh4 {[%clk 0:02:17.3]} 18.
h3 {[%clk 0:01:13.4]} 18... Qf4 {[%clk 0:01:34.4]} 19. Ne2 {[%clk 0:01:10.1]}
19... Qxd2 {[%clk 0:01:12.6]} 20. Nxd4 {[%clk 0:01:09.9]} 20... Qf4 {[%clk
0:01:11.7]} 21. c3 {[%clk 0:01:06.4]} 21... O-O-O {[%clk 0:01:11.7]} 22. Qa4
{[%clk 0:01:03.7]} 22... Nc6 {[%clk 0:00:49.4]} 23. g3 {[%clk 0:01:03.6]} 23...
Qc7 {[%clk 0:00:39.7]} 24. Nb5 {[%clk 0:00:58]} 24... Qb8 {[%clk 0:00:32.4]} 25.
Nd6+ {[%clk 0:00:56.3]} 25... Rxd6 {[%clk 0:00:31.7]} 26. cxd6 {[%clk
0:00:57.1]} 26... Qxd6 {[%clk 0:00:33.1]} 27. b4 {[%clk 0:00:51.9]} 27... Kb8
{[%clk 0:00:30.6]} 28. b5 {[%clk 0:00:51.4]} 28... Ne5 {[%clk 0:00:31.8]} 29. b6
{[%clk 0:00:45.8]} 29... axb6 {[%clk 0:00:26.6]} 30. Qe8+ {[%clk 0:00:45.7]}
30... Ka7 {[%clk 0:00:27.5]} 31. Qxh8 {[%clk 0:00:45.9]} 31... d4 {[%clk
0:00:20.9]} 32. f4 {[%clk 0:00:41.2]} 32... Nc6 {[%clk 0:00:18]} 33. cxd4 {[%clk
0:00:40.1]} 33... Nxd4 {[%clk 0:00:19.9]} 34. Qe5 {[%clk 0:00:32.7]} 34... Qa3
{[%clk 0:00:17.7]} 35. f5 {[%clk 0:00:21.6]} 35... Qb2 {[%clk 0:00:14.1]} 36.
Rae1 {[%clk 0:00:20]} 36... gxf5 {[%clk 0:00:10.8]} 37. Rf2 {[%clk 0:00:20.1]}
37... Qc3 {[%clk 0:00:10.4]} 38. Re3 {[%clk 0:00:19.1]} 38... Qc1+ {[%clk
0:00:08.2]} 39. Kh2 {[%clk 0:00:17.6]} 39... Nc6 {[%clk 0:00:08.2]} 40. Qc3
{[%clk 0:00:17.7]} 40... Qb1 {[%clk 0:00:07.5]} 41. Qa3+ {[%clk 0:00:18.6]}
41... Kb8 {[%clk 0:00:07.8]} 42. Qf8+ {[%clk 0:00:19.5]} 42... Ka7 {[%clk
0:00:08.8]} 43. Ra3+ {[%clk 0:00:20.5]} 43... Na5 {[%clk 0:00:08.5]} 44. Qxf7
{[%clk 0:00:21.3]} 44... Qb4 {[%clk 0:00:08.5]} 45. Raf3 {[%clk 0:00:21.3]}
45... Nc6 {[%clk 0:00:06.7]} 46. Qxh7 {[%clk 0:00:20.6]} 46... Nd4 {[%clk
0:00:06.3]} 47. Re3 {[%clk 0:00:21.6]} 47... Qc5 {[%clk 0:00:04.9]} 48. Qh6
{[%clk 0:00:22]} 48... e5 {[%clk 0:00:05.2]} 49. Qg5 {[%clk 0:00:21.8]} 49... e4
{[%clk 0:00:05.5]} 50. Qf4 {[%clk 0:00:20]} 50... Ne6 {[%clk 0:00:06]} 51. Qxf5
{[%clk 0:00:20.7]} 51... Qxe3 {[%clk 0:00:06]} 52. Rg2 {[%clk 0:00:21.9]} 52...
Nd4 {[%clk 0:00:06.7]} 53. Qf1 {[%clk 0:00:19.5]} 53... Nf3+ {[%clk 0:00:07.6]}
54. Kh1 {[%clk 0:00:20.8]} 54... Qh6 {[%clk 0:00:08.8]} 55. h4 {[%clk
0:00:21.1]} 55... Qe6 {[%clk 0:00:10.3]} 56. Re2 {[%clk 0:00:20.6]} 56... Qg4
{[%clk 0:00:11.4]} 57. Qg2 {[%clk 0:00:19.6]} 57... Qf5 {[%clk 0:00:11.7]} 58.
Re3 {[%clk 0:00:19]} 58... Qd5 {[%clk 0:00:11.9]} 59. Qf1 {[%clk 0:00:18.7]}
59... Qd2 {[%clk 0:00:10.5]} 60. Qe2 {[%clk 0:00:19.4]} 60... Qc1+ {[%clk
0:00:10.4]} 61. Kg2 {[%clk 0:00:19.9]} 61... Qg1+ {[%clk 0:00:10.7]} 62. Kh3
{[%clk 0:00:21.1]} 62... Qh1+ {[%clk 0:00:11.5]} 63. Kg4 {[%clk 0:00:22.4]}
63... Nd4 {[%clk 0:00:11.2]} 64. Qe1 {[%clk 0:00:21.6]} 64... Qg2 {[%clk
0:00:09.7]} 65. Rxe4 {[%clk 0:00:20.8]} 65... Nc6 {[%clk 0:00:08.5]} 66. Rf4
{[%clk 0:00:20.6]} 66... Qd5 {[%clk 0:00:07.7]} 67. Kh3 {[%clk 0:00:19.7]} 67...
Ne5 {[%clk 0:00:07.5]} 68. Rf5 {[%clk 0:00:19.4]} 1-0

[Event "*** Titled Tuesday Blitz"]
[Site "Chess.com"]
[Date "2019.08.06"]
[Round "9"]
[White "GrandGlacier"]
[Black "Caisachess"]
[Result "0-1"]
[WhiteElo "2438"]
[BlackElo "2333"]
[TimeControl "180+2"]
[EndTime "15:11:32 PDT"]
[Termination "Caisachess won by resignation"]

1. b3 {[%clk 0:03:01.9]} 1... e5 {[%clk 0:02:58.4]} 2. Bb2 {[%clk 0:03:02.8]}
2... d6 {[%clk 0:02:58.3]} 3. e3 {[%clk 0:03:03.4]} 3... Nf6 {[%clk 0:02:59]} 4.
Nf3 {[%clk 0:03:03]} 4... Be7 {[%clk 0:02:59.9]} 5. d4 {[%clk 0:03:03.6]} 5...
Nbd7 {[%clk 0:03:00.3]} 6. dxe5 {[%clk 0:03:04.1]} 6... dxe5 {[%clk 0:02:58.1]}
7. Nxe5 {[%clk 0:03:05]} 7... O-O {[%clk 0:02:57.8]} 8. Bd3 {[%clk 0:02:54.4]}
8... Bb4+ {[%clk 0:02:58.2]} 9. Nd2 {[%clk 0:02:55]} 9... Nc5 {[%clk 0:02:57.7]}
10. O-O {[%clk 0:02:49.2]} 10... Nxd3 {[%clk 0:02:57.6]} 11. Nxd3 {[%clk
0:02:40.6]} 11... Bxd2 {[%clk 0:02:58.6]} 12. Qxd2 {[%clk 0:02:41.4]} 12... Ne4
{[%clk 0:02:56.7]} 13. Qb4 {[%clk 0:02:40.6]} 13... Nf6 {[%clk 0:02:40.3]} 14.
f3 {[%clk 0:02:36.4]} 14... Re8 {[%clk 0:02:33.5]} 15. e4 {[%clk 0:02:36.9]}
15... a5 {[%clk 0:02:27.7]} 16. Qc3 {[%clk 0:02:34.1]} 16... Ra6 {[%clk
0:02:25.6]} 17. Nf4 {[%clk 0:02:31.5]} 17... Rc6 {[%clk 0:02:26.2]} 18. Qd3
{[%clk 0:02:18.1]} 18... Qxd3 {[%clk 0:02:24.6]} 19. cxd3 {[%clk 0:02:18.8]}
19... Nd7 {[%clk 0:02:18.1]} 20. Rac1 {[%clk 0:02:16.8]} 20... Rxc1 {[%clk
0:02:03.3]} 21. Rxc1 {[%clk 0:02:18.7]} 21... c6 {[%clk 0:02:03.6]} 22. Bc3
{[%clk 0:02:17.1]} 22... b6 {[%clk 0:02:02.7]} 23. d4 {[%clk 0:02:16.2]} 23...
f6 {[%clk 0:01:59.4]} 24. b4 {[%clk 0:02:00]} 24... axb4 {[%clk 0:01:52.3]} 25.
Bxb4 {[%clk 0:02:00.6]} 25... Bb7 {[%clk 0:01:53.1]} 26. Bd6 {[%clk 0:01:54]}
26... Ra8 {[%clk 0:01:50.5]} 27. a3 {[%clk 0:01:54.6]} 27... Kf7 {[%clk
0:01:51.2]} 28. Kf2 {[%clk 0:01:54.4]} 28... g5 {[%clk 0:01:44.4]} 29. Ne2
{[%clk 0:01:45.3]} 29... Ke6 {[%clk 0:01:33.2]} 30. Bb4 {[%clk 0:01:46.1]} 30...
Rc8 {[%clk 0:01:29.5]} 31. f4 {[%clk 0:01:35.8]} 31... c5 {[%clk 0:01:23]} 32.
d5+ {[%clk 0:01:31.3]} 32... Ke7 {[%clk 0:01:21.7]} 33. Bc3 {[%clk 0:01:22]}
33... gxf4 {[%clk 0:01:12.9]} 34. Nxf4 {[%clk 0:01:22.7]} 34... Ra8 {[%clk
0:01:07.1]} 35. Bb2 {[%clk 0:01:14.2]} 35... Ra4 {[%clk 0:01:05.1]} 36. Ke3
{[%clk 0:01:13.2]} 36... f5 {[%clk 0:00:59.3]} 37. exf5 {[%clk 0:01:03.2]} 37...
Kd6 {[%clk 0:00:46.2]} 38. Rd1 {[%clk 0:00:56.8]} 38... b5 {[%clk 0:00:32.1]}
39. f6 {[%clk 0:00:51.9]} 39... b4 {[%clk 0:00:29.1]} 40. axb4 {[%clk
0:00:48.4]} 40... Rxb4 {[%clk 0:00:30.4]} 41. Nd3 {[%clk 0:00:49.7]} 41... Rb3
{[%clk 0:00:27.6]} 42. Kf4 {[%clk 0:00:28]} 42... Bxd5 {[%clk 0:00:26.3]} 43.
Ne5 {[%clk 0:00:14.5]} 43... Nxf6 {[%clk 0:00:18]} 44. Nf7+ {[%clk 0:00:07]}
44... Ke7 {[%clk 0:00:17.7]} 45. Bxf6+ {[%clk 0:00:06.7]} 45... Kxf7 {[%clk
0:00:14.5]} 46. Kg5 {[%clk 0:00:02.4]} 46... Bxg2 {[%clk 0:00:13.2]} 47. Rd7+
{[%clk 0:00:03.9]} 47... Ke6 {[%clk 0:00:08.1]} 48. Re7+ {[%clk 0:00:05.4]}
48... Kd5 {[%clk 0:00:09]} 49. Rxh7 {[%clk 0:00:07]} 49... Be4 {[%clk
0:00:09.3]} 50. Re7 {[%clk 0:00:06.7]} 50... Rf3 {[%clk 0:00:07.8]} 51. Re5+
{[%clk 0:00:07.2]} 51... Kd4 {[%clk 0:00:07.8]} 52. Re8+ {[%clk 0:00:05.9]}
52... Kd3 {[%clk 0:00:08.5]} 53. Be5 {[%clk 0:00:05.7]} 53... c4 {[%clk
0:00:09.8]} 54. Rd8+ {[%clk 0:00:05.8]} 54... Ke2 {[%clk 0:00:10.7]} 55. Bf4
{[%clk 0:00:04.2]} 55... c3 {[%clk 0:00:09.9]} 56. h4 {[%clk 0:00:04.6]} 56...
c2 {[%clk 0:00:10.8]} 57. Rc8 {[%clk 0:00:04.7]} 57... Rf2 {[%clk 0:00:10]} 58.
h5 {[%clk 0:00:04.6]} 58... Rg2+ {[%clk 0:00:11.4]} 59. Kf6 {[%clk 0:00:05.4]}
59... Kd1 {[%clk 0:00:10.7]} 60. Ke5 {[%clk 0:00:05.8]} 60... Bd3 {[%clk
0:00:11.4]} 61. h6 {[%clk 0:00:07]} 61... Re2+ {[%clk 0:00:10.6]} 62. Kd4 {[%clk
0:00:06.9]} 62... Bf5 {[%clk 0:00:10.4]} 63. Be3 {[%clk 0:00:07.1]} 63... Bxc8
{[%clk 0:00:11.1]} 64. h7 {[%clk 0:00:07.3]} 64... Rh2 {[%clk 0:00:10.8]} 0-1

[Event "*** Titled Tuesday Blitz"]
[Site "Chess.com"]
[Date "2019.08.06"]
[Round "9"]
[White "Manukyan_Artak"]
[Black "Etoilegeniale"]
[Result "1/2-1/2"]
[WhiteElo "2405"]
[BlackElo "2519"]
[TimeControl "180+2"]
[EndTime "15:11:39 PDT"]
[Termination "Game drawn by repetition"]

1. e4 {[%clk 0:03:01.9]} 1... d6 {[%clk 0:02:53.8]} 2. d4 {[%clk 0:03:00.1]}
2... g6 {[%clk 0:02:54.9]} 3. c4 {[%clk 0:03:00.5]} 3... Bg7 {[%clk 0:02:55.9]}
4. Nc3 {[%clk 0:02:59.8]} 4... Nf6 {[%clk 0:02:57.1]} 5. f3 {[%clk 0:03:00.4]}
5... O-O {[%clk 0:02:58.1]} 6. Bg5 {[%clk 0:03:01.5]} 6... c5 {[%clk 0:02:57.2]}
7. d5 {[%clk 0:03:02.4]} 7... e6 {[%clk 0:02:58.4]} 8. Qd2 {[%clk 0:03:03.5]}
8... exd5 {[%clk 0:02:59.4]} 9. Nxd5 {[%clk 0:03:04.7]} 9... Nbd7 {[%clk
0:02:58.7]} 10. Ne2 {[%clk 0:03:02.7]} 10... Re8 {[%clk 0:02:57.5]} 11. Nec3
{[%clk 0:03:03.1]} 11... b6 {[%clk 0:02:54.2]} 12. O-O-O {[%clk 0:02:59.2]}
12... Bb7 {[%clk 0:02:49.5]} 13. Nxf6+ {[%clk 0:02:54.2]} 13... Bxf6 {[%clk
0:02:49.2]} 14. Bxf6 {[%clk 0:02:52.1]} 14... Qxf6 {[%clk 0:02:26.5]} 15. Qxd6
{[%clk 0:02:52.1]} 15... Rad8 {[%clk 0:02:26.7]} 16. Qxf6 {[%clk 0:02:44]} 16...
Nxf6 {[%clk 0:02:27.3]} 17. Rxd8 {[%clk 0:02:40.8]} 17... Rxd8 {[%clk
0:02:27.8]} 18. Be2 {[%clk 0:02:42.3]} 18... Nh5 {[%clk 0:02:13.6]} 19. g3
{[%clk 0:02:41.7]} 19... Ng7 {[%clk 0:02:13.7]} 20. Rd1 {[%clk 0:02:40.9]} 20...
Rxd1+ {[%clk 0:02:13.7]} 21. Kxd1 {[%clk 0:02:40.1]} 21... Ne6 {[%clk
0:02:14.8]} 22. Kd2 {[%clk 0:02:37.6]} 22... Nd4 {[%clk 0:02:15.9]} 23. Ke3
{[%clk 0:02:35.8]} 23... Kf8 {[%clk 0:02:16.5]} 24. Bd1 {[%clk 0:02:35.7]} 24...
Ke7 {[%clk 0:02:17.3]} 25. Ne2 {[%clk 0:02:34.3]} 25... Ne6 {[%clk 0:02:15.5]}
26. h4 {[%clk 0:02:30.3]} 26... f5 {[%clk 0:02:15]} 27. exf5 {[%clk 0:02:27.1]}
27... gxf5 {[%clk 0:02:16.1]} 28. Bc2 {[%clk 0:02:16.6]} 28... Kf6 {[%clk
0:02:16.4]} 29. Bd3 {[%clk 0:01:47.3]} 29... h6 {[%clk 0:02:15.3]} 30. Nf4
{[%clk 0:01:41.1]} 30... Nd4 {[%clk 0:02:14.3]} 31. Be2 {[%clk 0:01:27.1]} 31...
Nc2+ {[%clk 0:01:58.4]} 32. Kf2 {[%clk 0:01:19.7]} 32... Ke5 {[%clk 0:01:55.6]}
33. Bd1 {[%clk 0:01:13.8]} 33... Nd4 {[%clk 0:01:39.7]} 34. Ke3 {[%clk
0:01:13.4]} 34... a6 {[%clk 0:01:37.6]} 35. b4 {[%clk 0:01:03.1]} 35... Kd6
{[%clk 0:00:58.9]} 36. a3 {[%clk 0:00:57.7]} 36... a5 {[%clk 0:00:52.2]} 37.
bxa5 {[%clk 0:00:56.3]} 37... bxa5 {[%clk 0:00:52.2]} 38. g4 {[%clk 0:00:41.8]}
38... fxg4 {[%clk 0:00:49.2]} 39. fxg4 {[%clk 0:00:43.7]} 39... Ba6 {[%clk
0:00:49.9]} 40. Kd3 {[%clk 0:00:40.6]} 40... Nc6 {[%clk 0:00:47.5]} 41. Be2
{[%clk 0:00:37.1]} 41... Ke5 {[%clk 0:00:30.2]} 42. Nd5 {[%clk 0:00:33.9]} 42...
Nd4 {[%clk 0:00:29.3]} 43. Bd1 {[%clk 0:00:31.9]} 43... Ne6 {[%clk 0:00:21]} 44.
Kc3 {[%clk 0:00:27.7]} 44... Bb7 {[%clk 0:00:17.4]} 45. Ne3 {[%clk 0:00:25.9]}
45... Kf4 {[%clk 0:00:16.1]} 46. Nd5+ {[%clk 0:00:22.8]} 46... Kg3 {[%clk
0:00:15.2]} 47. h5 {[%clk 0:00:20.5]} 47... Ng5 {[%clk 0:00:15.3]} 48. Ne7
{[%clk 0:00:21]} 48... Ne4+ {[%clk 0:00:13.9]} 49. Kb2 {[%clk 0:00:20.7]} 49...
Nf2 {[%clk 0:00:14.8]} 50. Nf5+ {[%clk 0:00:20.6]} 50... Kf4 {[%clk 0:00:14.4]}
51. Be2 {[%clk 0:00:21]} 51... Nxg4 {[%clk 0:00:14]} 52. Bxg4 {[%clk 0:00:21.8]}
52... Kxg4 {[%clk 0:00:15.2]} 53. Nxh6+ {[%clk 0:00:23.7]} 53... Kxh5 {[%clk
0:00:16.4]} 54. Nf7 {[%clk 0:00:25]} 54... Kg4 {[%clk 0:00:16.2]} 55. Kc3 {[%clk
0:00:25.3]} 55... Kf4 {[%clk 0:00:16.2]} 56. Nd6 {[%clk 0:00:23.7]} 56... Bc6
{[%clk 0:00:17.3]} 57. Nb5 {[%clk 0:00:23.2]} 57... Ke5 {[%clk 0:00:16.9]} 58.
Nc7 {[%clk 0:00:23.8]} 58... Kd6 {[%clk 0:00:16.5]} 59. Nb5+ {[%clk 0:00:24.9]}
59... Ke5 {[%clk 0:00:14.7]} 60. Nc7 {[%clk 0:00:23.6]} 60... a4 {[%clk
0:00:15.6]} 61. Nb5 {[%clk 0:00:20.5]} 61... Ke6 {[%clk 0:00:15.7]} 62. Kd3
{[%clk 0:00:21.3]} 62... Ke5 {[%clk 0:00:16.2]} 63. Nc3 {[%clk 0:00:22.1]} 63...
Bd7 {[%clk 0:00:15.7]} 64. Ke3 {[%clk 0:00:22]} 64... Bc6 {[%clk 0:00:16.3]} 65.
Ne2 {[%clk 0:00:21.8]} 65... Bd7 {[%clk 0:00:16.2]} 66. Nf4 {[%clk 0:00:23]}
66... Bc6 {[%clk 0:00:16.3]} 67. Nd3+ {[%clk 0:00:24]} 67... Kd6 {[%clk
0:00:17.5]} 68. Kf4 {[%clk 0:00:25.2]} 68... Be8 {[%clk 0:00:17.8]} 69. Ne5
{[%clk 0:00:26]} 69... Bh5 {[%clk 0:00:17]} 70. Ke4 {[%clk 0:00:24.1]} 70... Be2
{[%clk 0:00:17.5]} 71. Kf4 {[%clk 0:00:24]} 71... Bf1 {[%clk 0:00:17.7]} 72. Ke4
{[%clk 0:00:24.9]} 72... Bg2+ {[%clk 0:00:18.5]} 73. Kf5 {[%clk 0:00:24.6]}
73... Bf1 {[%clk 0:00:18.8]} 74. Ke4 {[%clk 0:00:24]} 74... Ke6 {[%clk
0:00:17.7]} 75. Kf4 {[%clk 0:00:23.1]} 75... Bg2 {[%clk 0:00:12.9]} 76. Nd3
{[%clk 0:00:22.7]} 76... Kd6 {[%clk 0:00:14.2]} 77. Ne5 {[%clk 0:00:20.5]} 77...
Bf1 {[%clk 0:00:11.3]} 78. Ke4 {[%clk 0:00:21.2]} 1/2-1/2

[Event "*** Titled Tuesday Blitz"]
[Site "Chess.com"]
[Date "2019.08.06"]
[Round "9"]
[White "SaraciNderim"]
[Black "IMRosen"]
[Result "1-0"]
[WhiteElo "2830"]
[BlackElo "2613"]
[TimeControl "180+2"]
[EndTime "15:12:10 PDT"]
[Termination "SaraciNderim won by checkmate"]

1. d4 {[%clk 0:03:01.7]} 1... d5 {[%clk 0:02:57.2]} 2. Nf3 {[%clk 0:03:03.1]}
2... Nf6 {[%clk 0:02:57.2]} 3. c4 {[%clk 0:03:04.5]} 3... e6 {[%clk 0:02:58.3]}
4. Nc3 {[%clk 0:03:05.3]} 4... Be7 {[%clk 0:02:55.3]} 5. Bg5 {[%clk 0:03:06.3]}
5... O-O {[%clk 0:02:56.9]} 6. cxd5 {[%clk 0:03:07.3]} 6... exd5 {[%clk
0:02:57.5]} 7. e3 {[%clk 0:03:08.5]} 7... Re8 {[%clk 0:02:58]} 8. Bd3 {[%clk
0:03:09.6]} 8... Nbd7 {[%clk 0:02:57.9]} 9. O-O {[%clk 0:03:07.2]} 9... c6
{[%clk 0:02:57.8]} 10. Rc1 {[%clk 0:03:07.6]} 10... Nf8 {[%clk 0:02:58.7]} 11.
h3 {[%clk 0:03:08.6]} 11... Ng6 {[%clk 0:02:59.4]} 12. Ne5 {[%clk 0:03:09.4]}
12... Nxe5 {[%clk 0:02:32]} 13. dxe5 {[%clk 0:03:11.3]} 13... Nd7 {[%clk
0:02:33.5]} 14. Bf4 {[%clk 0:01:45.8]} 14... Bf8 {[%clk 0:02:13.2]} 15. Bg3
{[%clk 0:01:42.8]} 15... Nxe5 {[%clk 0:01:43.2]} 16. Bxh7+ {[%clk 0:01:37.9]}
16... Kxh7 {[%clk 0:01:45.1]} 17. Qh5+ {[%clk 0:01:39]} 17... Kg8 {[%clk
0:01:46.5]} 18. Bxe5 {[%clk 0:01:40.4]} 18... f6 {[%clk 0:01:18.8]} 19. Bg3
{[%clk 0:01:39.7]} 19... Be6 {[%clk 0:01:17.3]} 20. Rfd1 {[%clk 0:01:40.3]}
20... Bf7 {[%clk 0:01:17]} 21. Qf3 {[%clk 0:01:40.8]} 21... Qe7 {[%clk
0:01:11.7]} 22. Ne2 {[%clk 0:01:40.5]} 22... Qe4 {[%clk 0:01:04.7]} 23. Qxe4
{[%clk 0:01:40.9]} 23... Rxe4 {[%clk 0:01:02.2]} 24. Nd4 {[%clk 0:01:42.1]}
24... Ree8 {[%clk 0:00:53]} 25. a3 {[%clk 0:01:40.2]} 25... a5 {[%clk
0:00:52.1]} 26. Rd2 {[%clk 0:01:39.1]} 26... Bg6 {[%clk 0:00:50.6]} 27. Nb3
{[%clk 0:01:35.1]} 27... a4 {[%clk 0:00:37]} 28. Nc5 {[%clk 0:01:34.7]} 28...
Ra7 {[%clk 0:00:27.8]} 29. Rd4 {[%clk 0:01:32.1]} 29... b5 {[%clk 0:00:21]} 30.
Nd3 {[%clk 0:01:16.6]} 30... Ra6 {[%clk 0:00:16.5]} 31. Nb4 {[%clk 0:01:15.6]}
31... Bxb4 {[%clk 0:00:17.2]} 32. axb4 {[%clk 0:01:17.5]} 32... Bf5 {[%clk
0:00:15]} 33. Kf1 {[%clk 0:01:14.3]} 33... Bd7 {[%clk 0:00:15.9]} 34. Rc3 {[%clk
0:01:15.1]} 34... Kf7 {[%clk 0:00:17]} 35. Ke2 {[%clk 0:01:15.7]} 35... Ra7
{[%clk 0:00:18.1]} 36. Bd6 {[%clk 0:01:15.6]} 36... Rea8 {[%clk 0:00:18.9]} 37.
Rdd3 {[%clk 0:01:13.6]} 37... Ke6 {[%clk 0:00:18.7]} 38. Bc5 {[%clk 0:01:14.6]}
38... Rc7 {[%clk 0:00:19.6]} 39. f3 {[%clk 0:01:15.8]} 39... Rcc8 {[%clk
0:00:21]} 40. Kf2 {[%clk 0:01:16.7]} 40... Be8 {[%clk 0:00:22.1]} 41. Rd4 {[%clk
0:01:17.9]} 41... Bg6 {[%clk 0:00:22.5]} 42. g4 {[%clk 0:01:14.2]} 42... Bf7
{[%clk 0:00:21.1]} 43. e4 {[%clk 0:01:14.6]} 43... Kd7 {[%clk 0:00:20.8]} 44.
Re3 {[%clk 0:01:13]} 44... Re8 {[%clk 0:00:21.5]} 45. h4 {[%clk 0:01:13.2]}
45... Be6 {[%clk 0:00:21.9]} 46. h5 {[%clk 0:01:13.4]} 46... Kc7 {[%clk
0:00:19.4]} 47. Kg3 {[%clk 0:01:13.9]} 47... Rad8 {[%clk 0:00:20.8]} 48. Rd2
{[%clk 0:01:07.9]} 48... Bf7 {[%clk 0:00:21.7]} 49. Rde2 {[%clk 0:01:06.5]}
49... d4 {[%clk 0:00:20.4]} 50. Ra3 {[%clk 0:00:59.3]} 50... d3 {[%clk
0:00:18.3]} 51. Rd2 {[%clk 0:01:00.4]} 51... Bb3 {[%clk 0:00:19.8]} 52. Ra1
{[%clk 0:00:58.5]} 52... Bc2 {[%clk 0:00:20.9]} 53. Rh1 {[%clk 0:00:58.9]} 53...
Rh8 {[%clk 0:00:20.8]} 54. Re1 {[%clk 0:00:58.5]} 54... Rde8 {[%clk 0:00:18.3]}
55. Re3 {[%clk 0:00:56.1]} 55... Rd8 {[%clk 0:00:15.5]} 56. Kf4 {[%clk
0:00:56.7]} 56... Rd7 {[%clk 0:00:15.1]} 57. Re1 {[%clk 0:00:46.5]} 57... Re8
{[%clk 0:00:15.3]} 58. Ke3 {[%clk 0:00:47.5]} 58... Ra8 {[%clk 0:00:15.4]} 59.
Ra1 {[%clk 0:00:47.1]} 59... Kd8 {[%clk 0:00:14.2]} 60. Rh2 {[%clk 0:00:47.5]}
60... Kc7 {[%clk 0:00:08.3]} 61. Kd2 {[%clk 0:00:48.2]} 61... Rh8 {[%clk
0:00:07.8]} 62. Rah1 {[%clk 0:00:47.5]} 62... Kd8 {[%clk 0:00:08]} 63. h6 {[%clk
0:00:47.7]} 63... g6 {[%clk 0:00:09.2]} 64. Kc3 {[%clk 0:00:43.8]} 64... Ke8
{[%clk 0:00:10.5]} 65. Bd4 {[%clk 0:00:43.8]} 65... Kf7 {[%clk 0:00:11.7]} 66.
g5 {[%clk 0:00:44.2]} 66... Rxd4 {[%clk 0:00:07.2]} 67. Kxd4 {[%clk 0:00:44.9]}
67... fxg5 {[%clk 0:00:09.1]} 68. Ke3 {[%clk 0:00:45.4]} 68... Kg8 {[%clk
0:00:09.3]} 69. Rg1 {[%clk 0:00:46]} 69... Kh7 {[%clk 0:00:08.2]} 70. Rxg5
{[%clk 0:00:46.8]} 70... Rd8 {[%clk 0:00:09.8]} 71. Rc5 {[%clk 0:00:47.3]} 71...
Bd1 {[%clk 0:00:07.3]} 72. Rd2 {[%clk 0:00:44.7]} 72... Be2 {[%clk 0:00:06.4]}
73. Rxc6 {[%clk 0:00:45.8]} 73... Kxh6 {[%clk 0:00:05.9]} 74. Rc5 {[%clk
0:00:46.8]} 74... g5 {[%clk 0:00:05.3]} 75. Rxb5 {[%clk 0:00:47.2]} 75... Rf8
{[%clk 0:00:06.9]} 76. Rxe2 {[%clk 0:00:46.1]} 76... dxe2 {[%clk 0:00:07]} 77.
Kxe2 {[%clk 0:00:48]} 77... Rc8 {[%clk 0:00:06.6]} 78. Rc5 {[%clk 0:00:48.8]}
78... Rb8 {[%clk 0:00:07.4]} 79. b5 {[%clk 0:00:50]} 79... Kh5 {[%clk
0:00:05.7]} 80. f4 {[%clk 0:00:49.6]} 80... Kg4 {[%clk 0:00:06.8]} 81. fxg5
{[%clk 0:00:50.7]} 81... Kf4 {[%clk 0:00:07.4]} 82. Kd3 {[%clk 0:00:51.2]} 82...
Rd8+ {[%clk 0:00:06.3]} 83. Rd5 {[%clk 0:00:52.3]} 83... Rb8 {[%clk 0:00:06.6]}
84. g6 {[%clk 0:00:52.3]} 84... Kf3 {[%clk 0:00:04.7]} 85. g7 {[%clk 0:00:52.9]}
85... Rg8 {[%clk 0:00:04.7]} 86. Rd7 {[%clk 0:00:53.7]} 86... Kg2 {[%clk
0:00:04]} 87. b6 {[%clk 0:00:54.2]} 87... Rb8 {[%clk 0:00:02.7]} 88. b7 {[%clk
0:00:54.6]} 88... a3 {[%clk 0:00:03.9]} 89. bxa3 {[%clk 0:00:55]} 89... Re8
{[%clk 0:00:05.1]} 90. a4 {[%clk 0:00:55.4]} 90... Re6 {[%clk 0:00:03.2]} 91.
g8=Q+ {[%clk 0:00:55.3]} 91... Kf1 {[%clk 0:00:03.6]} 92. Rf7+ {[%clk 0:00:55]}
92... Ke1 {[%clk 0:00:04]} 93. Qg1# {[%clk 0:00:55.3]} 1-0